[Event "Titled Tuesday Blitz May 25 2021"]
[White "Isajevsky, Anton"]
[Black "Asis Gargatagli, Hipolito"]
[WhiteFideId "4142500"]
[BlackFideId "2260735"]
[WhiteElo "2510"]
[BlackElo "2557"]
[Result "1/2-1/2"]
[Round "02"]
[TimeControl "180+1"]
[Date "2021.05.25"]
[WhiteClock "0:00:05"]
[BlackClock "0:00:11"]

1. c4 {[%clk 0:02:48]}  e6 {[%clk 0:02:57]} 2. Nf3 {[%clk 0:02:48]}  d5 {[%clk 0:02:58]} 3. e3 {[%clk 0:02:49]}  Nf6 {[%clk 0:02:58]} 4. Nc3 {[%clk 0:02:49]}  c6 {[%clk 0:02:58]} 5. Qc2 {[%clk 0:02:48]}  Bd6 {[%clk 0:02:57]} 6. b3 {[%clk 0:02:48]}  O-O {[%clk 0:02:57]} 7. Bb2 {[%clk 0:02:47]}  e5 {[%clk 0:02:58]} 8. cxd5 {[%clk 0:02:47]}  cxd5 {[%clk 0:02:59]} 9. Nb5 {[%clk 0:02:47]}  Nc6 {[%clk 0:02:59]} 10. Nxd6 {[%clk 0:02:48]}  Qxd6 {[%clk 0:03:00]} 11. Bb5 {[%clk 0:02:47]}  Nb4 {[%clk 0:03:00]} 12. Qc1 {[%clk 0:02:09]}  Bf5 {[%clk 0:02:51]} 13. Bxe5 {[%clk 0:02:06]}  Qb6 {[%clk 0:02:51]} 14. Nd4 {[%clk 0:01:58]}  Bd3 {[%clk 0:02:14]} 15. Bc7 {[%clk 0:01:36]}  Qxd4 {[%clk 0:02:00]} 16. exd4 {[%clk 0:01:35]}  Bxb5 {[%clk 0:02:01]} 17. Qc3 {[%clk 0:00:45]}  Nd3+ {[%clk 0:01:53]} 18. Kf1 {[%clk 0:00:45]}  Nf4+ {[%clk 0:01:39]} 19. Ke1 {[%clk 0:00:42]}  Nd3+ {[%clk 0:01:32]} 20. Kf1 {[%clk 0:00:41]}  Rac8 {[%clk 0:01:28]} 21. Qa5 {[%clk 0:00:27]}  Ba6 {[%clk 0:01:27]} 22. Kg1 {[%clk 0:00:26]}  Rfe8 {[%clk 0:01:24]} 23. b4 {[%clk 0:00:21]}  Bc4 {[%clk 0:01:23]} 24. h3 {[%clk 0:00:16]}  b6 {[%clk 0:01:22]} 25. Qxa7 {[%clk 0:00:16]}  Re7 {[%clk 0:01:23]} 26. Qxb6 {[%clk 0:00:15]}  Rexc7 {[%clk 0:01:22]} 27. a4 {[%clk 0:00:15]}  Ne4 {[%clk 0:01:22]} 28. a5 {[%clk 0:00:14]}  Rc6 {[%clk 0:01:09]} 29. Qb7 {[%clk 0:00:08]}  Ba6 {[%clk 0:01:09]} 30. Qd7 {[%clk 0:00:08]}  Ndxf2 {[%clk 0:00:50]} 31. Kh2 {[%clk 0:00:07]}  Nxh1 {[%clk 0:00:49]} 32. Rxh1 {[%clk 0:00:07]}  Bc4 {[%clk 0:00:44]} 33. Rb1 {[%clk 0:00:04]}  Nd6 {[%clk 0:00:45]} 34. b5 {[%clk 0:00:02]}  Bxb5 {[%clk 0:00:42]} 35. Qe7 {[%clk 0:00:01]}  h6 {[%clk 0:00:40]} 36. Qe5 {[%clk 0:00:02]}  Bc4 {[%clk 0:00:38]} 37. Rb6 {[%clk 0:00:02]}  Rxb6 {[%clk 0:00:37]} 38. axb6 {[%clk 0:00:02]}  Nb7 {[%clk 0:00:17]} 39. d3 {[%clk 0:00:03]}  Ba6 {[%clk 0:00:16]} 40. Qxd5 {[%clk 0:00:03]}  Rc3 {[%clk 0:00:15]} 41. Qd7 {[%clk 0:00:03]}  Rb3 {[%clk 0:00:14]} 42. Qc7 {[%clk 0:00:03]}  g6 {[%clk 0:00:12]} 43. d5 {[%clk 0:00:03]}  Rxd3 {[%clk 0:00:11]} 44. Qb8+ {[%clk 0:00:04]}  Kg7 {[%clk 0:00:11]} 45. Qe5+ {[%clk 0:00:04]}  Kh7 {[%clk 0:00:12]} 46. Qe7 {[%clk 0:00:04]}  Kg8 {[%clk 0:00:11]} 47. Qe8+ {[%clk 0:00:05]}  Kg7 {[%clk 0:00:11]} 48. Qe5+ {[%clk 0:00:05]}  Kf8 {[%clk 0:00:12]} 49. Qb8+ {[%clk 0:00:05]}  Kg7 {[%clk 0:00:11]} 50. Qe5+ {[%clk 0:00:05]} 1/2-1/2


[Site "https://www.chess.com"]

[Event "Titled Tuesday Blitz May 25 2021"]
[White "Jones, Gawain C B"]
[Black "Espinosa Veloz, Ermes"]
[WhiteFideId "409561"]
[BlackFideId "3507424"]
[WhiteElo "2657"]
[BlackElo "2333"]
[Result "1-0"]
[Round "02"]
[TimeControl "180+1"]
[Date "2021.05.25"]
[WhiteClock "0:00:59"]
[BlackClock "0:00:09"]

1. c4 {[%clk 0:03:00]}  Nf6 {[%clk 0:02:58]} 2. g3 {[%clk 0:02:59]}  g6 {[%clk 0:02:59]} 3. b3 {[%clk 0:02:58]}  Bg7 {[%clk 0:02:59]} 4. Bb2 {[%clk 0:02:58]}  O-O {[%clk 0:02:57]} 5. Bg2 {[%clk 0:02:59]}  d6 {[%clk 0:02:51]} 6. d4 {[%clk 0:02:57]}  Nbd7 {[%clk 0:02:48]} 7. Nf3 {[%clk 0:02:57]}  c6 {[%clk 0:02:44]} 8. O-O {[%clk 0:02:56]}  a6 {[%clk 0:02:44]} 9. Nbd2 {[%clk 0:02:54]}  b5 {[%clk 0:02:43]} 10. Qc2 {[%clk 0:02:54]}  Bb7 {[%clk 0:02:35]} 11. a4 {[%clk 0:02:51]}  Qb6 {[%clk 0:02:15]} 12. Rfc1 {[%clk 0:02:36]}  Rfc8 {[%clk 0:02:08]} 13. c5 {[%clk 0:02:36]}  Qc7 {[%clk 0:02:00]} 14. b4 {[%clk 0:02:27]}  Nd5 {[%clk 0:01:55]} 15. axb5 {[%clk 0:02:23]}  cxb5 {[%clk 0:01:49]} 16. Qb3 {[%clk 0:02:19]}  dxc5 {[%clk 0:01:35]} 17. bxc5 {[%clk 0:02:08]}  e6 {[%clk 0:01:06]} 18. c6 {[%clk 0:01:34]}  Bxc6 {[%clk 0:01:06]} 19. e4 {[%clk 0:01:34]}  N5f6 {[%clk 0:01:05]} 20. d5 {[%clk 0:01:29]}  exd5 {[%clk 0:01:04]} 21. exd5 {[%clk 0:01:29]}  Nxd5 {[%clk 0:00:08]} 22. Bxg7 {[%clk 0:01:30]}  Kxg7 {[%clk 0:00:09]} 23. Nd4 {[%clk 0:01:30]}  Ne5 {[%clk 0:00:08]} 24. Nxc6 {[%clk 0:01:18]}  Ne7 {[%clk 0:00:08]} 25. Nxe5 {[%clk 0:01:05]}  Qxc1+ {[%clk 0:00:09]} 26. Rxc1 {[%clk 0:01:05]}  Rxc1+ {[%clk 0:00:09]} 27. Nf1 {[%clk 0:01:04]}  Rf8 {[%clk 0:00:10]} 28. Qb2 {[%clk 0:01:03]}  Re1 {[%clk 0:00:09]} 29. Nf3+ {[%clk 0:00:59]} 1-0


[Site "https://www.chess.com"]

[Event "Titled Tuesday Blitz May 25 2021"]
[White "Kamsky, Gata"]
[Black "Ronka, Erik"]
[WhiteFideId "2000024"]
[BlackFideId "505080"]
[WhiteElo "2644"]
[BlackElo "2264"]
[Result "1-0"]
[Round "02"]
[TimeControl "180+1"]
[Date "2021.05.25"]
[WhiteClock "0:01:52"]
[BlackClock "0:00:03"]

1. d4 {[%clk 0:03:00]}  d5 {[%clk 0:03:00]} 2. Nf3 {[%clk 0:02:59]}  Nf6 {[%clk 0:02:58]} 3. Bf4 {[%clk 0:02:58]}  c5 {[%clk 0:02:58]} 4. e3 {[%clk 0:02:58]}  cxd4 {[%clk 0:02:59]} 5. exd4 {[%clk 0:02:57]}  Nc6 {[%clk 0:02:59]} 6. c3 {[%clk 0:02:56]}  Bf5 {[%clk 0:02:55]} 7. Nbd2 {[%clk 0:02:53]}  e6 {[%clk 0:02:53]} 8. Bb5 {[%clk 0:02:53]}  Bd6 {[%clk 0:02:48]} 9. Bg3 {[%clk 0:02:50]}  O-O {[%clk 0:02:46]} 10. O-O {[%clk 0:02:50]}  Bxg3 {[%clk 0:02:42]} 11. hxg3 {[%clk 0:02:49]}  Rc8 {[%clk 0:02:28]} 12. Re1 {[%clk 0:02:46]}  a6 {[%clk 0:02:26]} 13. Bxc6 {[%clk 0:02:45]}  Rxc6 {[%clk 0:02:27]} 14. Ne5 {[%clk 0:02:45]}  Rc7 {[%clk 0:02:25]} 15. g4 {[%clk 0:02:45]}  Bg6 {[%clk 0:02:18]} 16. g5 {[%clk 0:02:45]}  Nd7 {[%clk 0:02:15]} 17. Nxd7 {[%clk 0:02:41]}  Rxd7 {[%clk 0:02:08]} 18. Qg4 {[%clk 0:02:37]}  b5 {[%clk 0:01:38]} 19. a3 {[%clk 0:02:34]}  a5 {[%clk 0:01:37]} 20. Nf3 {[%clk 0:02:31]}  Rd6 {[%clk 0:01:28]} 21. b4 {[%clk 0:02:21]}  axb4 {[%clk 0:01:13]} 22. axb4 {[%clk 0:02:20]}  Rc6 {[%clk 0:00:56]} 23. Re3 {[%clk 0:02:16]}  Qc7 {[%clk 0:00:53]} 24. Ra3 {[%clk 0:02:14]}  Rc8 {[%clk 0:00:52]} 25. Ne5 {[%clk 0:02:13]}  Rd6 {[%clk 0:00:45]} 26. Qf4 {[%clk 0:02:09]}  Qd8 {[%clk 0:00:34]} 27. Re1 {[%clk 0:02:02]}  Qe7 {[%clk 0:00:30]} 28. Rea1 {[%clk 0:02:00]}  Rb6 {[%clk 0:00:17]} 29. Ra8 {[%clk 0:01:53]}  Qb7 {[%clk 0:00:08]} 30. R8a7 {[%clk 0:01:52]}  Qb8 {[%clk 0:00:03]} 31. Nxg6 {[%clk 0:01:52]} 1-0


[Site "https://www.chess.com"]

[Event "Titled Tuesday Blitz May 25 2021"]
[White "Kapitanchuk, Tomas"]
[Black "Rustemov, Alexander"]
[WhiteFideId "135046"]
[BlackFideId "4119002"]
[WhiteElo "1955"]
[BlackElo "2714"]
[Result "0-1"]
[Round "02"]
[TimeControl "180+1"]
[Date "2021.05.25"]
[WhiteClock "0:00:03"]
[BlackClock "0:00:26"]

1. e4 {[%clk 0:03:00]}  e6 {[%clk 0:03:00]} 2. d4 {[%clk 0:03:00]}  d5 {[%clk 0:03:01]} 3. Nd2 {[%clk 0:03:01]}  c5 {[%clk 0:03:00]} 4. Ngf3 {[%clk 0:03:00]}  Nf6 {[%clk 0:02:58]} 5. exd5 {[%clk 0:02:54]}  Nxd5 {[%clk 0:02:58]} 6. Ne4 {[%clk 0:02:44]}  cxd4 {[%clk 0:02:58]} 7. Nxd4 {[%clk 0:02:44]}  Be7 {[%clk 0:02:55]} 8. Be2 {[%clk 0:02:41]}  O-O {[%clk 0:02:52]} 9. O-O {[%clk 0:02:41]}  Nd7 {[%clk 0:02:46]} 10. c4 {[%clk 0:02:38]}  N5f6 {[%clk 0:02:45]} 11. Nc3 {[%clk 0:02:34]}  a6 {[%clk 0:02:40]} 12. Be3 {[%clk 0:02:29]}  Qc7 {[%clk 0:02:39]} 13. Rc1 {[%clk 0:02:27]}  b6 {[%clk 0:02:38]} 14. a3 {[%clk 0:02:11]}  Bb7 {[%clk 0:02:38]} 15. b4 {[%clk 0:02:11]}  Rac8 {[%clk 0:02:27]} 16. Qd2 {[%clk 0:01:59]}  Ne5 {[%clk 0:02:24]} 17. Na4 {[%clk 0:01:50]}  Rfd8 {[%clk 0:02:21]} 18. h3 {[%clk 0:01:39]}  Ne4 {[%clk 0:02:08]} 19. Qa2 {[%clk 0:01:35]}  Bg5 {[%clk 0:01:56]} 20. Bxg5 {[%clk 0:01:08]}  Nxg5 {[%clk 0:01:57]} 21. Rfd1 {[%clk 0:01:04]}  Ng6 {[%clk 0:01:41]} 22. c5 {[%clk 0:00:55]}  Nf4 {[%clk 0:01:30]} 23. Bf1 {[%clk 0:00:41]}  Nfxh3+ {[%clk 0:01:21]} 24. gxh3 {[%clk 0:00:37]}  Rxd4 {[%clk 0:01:22]} 25. Bg2 {[%clk 0:00:26]}  Bxg2 {[%clk 0:01:14]} 26. Rxd4 {[%clk 0:00:24]}  Nf3+ {[%clk 0:01:02]} 27. Kxg2 {[%clk 0:00:24]}  Nxd4 {[%clk 0:01:02]} 28. Nxb6 {[%clk 0:00:19]}  Qc6+ {[%clk 0:01:01]} 29. Kg1 {[%clk 0:00:16]}  Nf3+ {[%clk 0:00:59]} 30. Kf1 {[%clk 0:00:17]}  Rd8 {[%clk 0:01:00]} 31. Qe2 {[%clk 0:00:13]}  Nh4 {[%clk 0:00:53]} 32. f3 {[%clk 0:00:12]}  Nxf3 {[%clk 0:00:53]} 33. Rd1 {[%clk 0:00:12]}  Nd4 {[%clk 0:00:51]} 34. Qg2 {[%clk 0:00:12]}  Qb5+ {[%clk 0:00:50]} 35. Kg1 {[%clk 0:00:09]}  g6 {[%clk 0:00:45]} 36. Kh1 {[%clk 0:00:08]}  e5 {[%clk 0:00:44]} 37. Rf1 {[%clk 0:00:08]}  Nf5 {[%clk 0:00:38]} 38. Rg1 {[%clk 0:00:06]}  Rd3 {[%clk 0:00:36]} 39. Nd5 {[%clk 0:00:06]}  Kg7 {[%clk 0:00:31]} 40. Nc7 {[%clk 0:00:04]}  Qc4 {[%clk 0:00:30]} 41. Ne8+ {[%clk 0:00:04]}  Kf8 {[%clk 0:00:28]} 42. Nf6 {[%clk 0:00:05]}  Ng3+ {[%clk 0:00:26]} 43. Kh2 {[%clk 0:00:05]}  Qf4 {[%clk 0:00:26]} 44. Qa8+ {[%clk 0:00:03]}  Kg7 {[%clk 0:00:26]} 45. Ne8+ {[%clk 0:00:03]}  Kh6 {[%clk 0:00:27]} 46. Kg2 {[%clk 0:00:03]}  Rd2# {[%clk 0:00:26]} 0-1


[Site "https://www.chess.com"]

[Event "Titled Tuesday Blitz May 25 2021"]
[White "Kim, Yoon-Young"]
[Black "Koellner, Ruben Gideon"]
[WhiteFideId "30908779"]
[BlackFideId "12993093"]
[WhiteElo "2109"]
[BlackElo "2497"]
[Result "0-1"]
[Round "02"]
[TimeControl "180+1"]
[Date "2021.05.25"]
[WhiteClock "0:00:09"]
[BlackClock "0:00:07"]

1. d4 {[%clk 0:03:00]}  d6 {[%clk 0:03:00]} 2. Nf3 {[%clk 0:03:01]}  Nf6 {[%clk 0:02:58]} 3. c4 {[%clk 0:03:01]}  g6 {[%clk 0:02:58]} 4. Nc3 {[%clk 0:03:02]}  Bf5 {[%clk 0:02:58]} 5. Qb3 {[%clk 0:02:56]}  b6 {[%clk 0:02:58]} 6. Bg5 {[%clk 0:02:54]}  Bg7 {[%clk 0:02:57]} 7. e3 {[%clk 0:02:55]}  O-O {[%clk 0:02:56]} 8. Be2 {[%clk 0:02:55]}  c5 {[%clk 0:02:56]} 9. O-O {[%clk 0:02:54]}  Nc6 {[%clk 0:02:57]} 10. d5 {[%clk 0:02:52]}  Nb4 {[%clk 0:02:51]} 11. Rac1 {[%clk 0:02:41]}  Rb8 {[%clk 0:02:40]} 12. Rfd1 {[%clk 0:02:10]}  Na6 {[%clk 0:02:38]} 13. Nd2 {[%clk 0:02:05]}  Nc7 {[%clk 0:02:33]} 14. a4 {[%clk 0:02:03]}  a6 {[%clk 0:02:32]} 15. e4 {[%clk 0:01:59]}  Bd7 {[%clk 0:02:32]} 16. Qc2 {[%clk 0:01:43]}  h6 {[%clk 0:02:31]} 17. Bh4 {[%clk 0:01:39]}  b5 {[%clk 0:02:31]} 18. axb5 {[%clk 0:01:39]}  axb5 {[%clk 0:02:32]} 19. cxb5 {[%clk 0:01:40]}  Nxb5 {[%clk 0:02:31]} 20. Nxb5 {[%clk 0:01:41]}  Bxb5 {[%clk 0:02:32]} 21. Bxb5 {[%clk 0:01:41]}  Rxb5 {[%clk 0:02:32]} 22. Nc4 {[%clk 0:01:42]}  Nd7 {[%clk 0:02:28]} 23. Nxd6 {[%clk 0:01:41]}  Rxb2 {[%clk 0:02:24]} 24. Qa4 {[%clk 0:01:16]}  g5 {[%clk 0:02:17]} 25. Nf5 {[%clk 0:00:48]}  gxh4 {[%clk 0:02:13]} 26. Nxg7 {[%clk 0:00:47]}  Kxg7 {[%clk 0:02:07]} 27. Qa1 {[%clk 0:00:46]}  Qb6 {[%clk 0:02:05]} 28. Rb1 {[%clk 0:00:38]}  Rb8 {[%clk 0:01:03]} 29. Rd2 {[%clk 0:00:34]}  Qa5 {[%clk 0:00:43]} 30. Rdxb2 {[%clk 0:00:07]}  Qxa1 {[%clk 0:00:42]} 31. Rxb8 {[%clk 0:00:08]}  Qd4 {[%clk 0:00:38]} 32. R8b7 {[%clk 0:00:08]}  Nf6 {[%clk 0:00:33]} 33. Rxe7 {[%clk 0:00:06]}  Nxe4 {[%clk 0:00:33]} 34. Rf1 {[%clk 0:00:06]}  Qxd5 {[%clk 0:00:24]} 35. Re1 {[%clk 0:00:06]}  Nf6 {[%clk 0:00:19]} 36. R7e5 {[%clk 0:00:06]}  Qd4 {[%clk 0:00:18]} 37. R5e3 {[%clk 0:00:03]}  c4 {[%clk 0:00:17]} 38. Rc1 {[%clk 0:00:03]}  Nd5 {[%clk 0:00:14]} 39. Re2 {[%clk 0:00:02]}  Qd3 {[%clk 0:00:12]} 40. Rec2 {[%clk 0:00:01]}  c3 {[%clk 0:00:13]} 41. h3 {[%clk 0:00:02]}  f5 {[%clk 0:00:13]} 42. Kh2 {[%clk 0:00:02]}  Kf6 {[%clk 0:00:13]} 43. Kg1 {[%clk 0:00:03]}  f4 {[%clk 0:00:13]} 44. Ra2 {[%clk 0:00:04]}  f3 {[%clk 0:00:12]} 45. gxf3 {[%clk 0:00:04]}  Ke5 {[%clk 0:00:12]} 46. Ra4 {[%clk 0:00:04]}  Qd2 {[%clk 0:00:11]} 47. Re4+ {[%clk 0:00:05]}  Kf5 {[%clk 0:00:11]} 48. Rce1 {[%clk 0:00:05]}  c2 {[%clk 0:00:06]} 49. Re5+ {[%clk 0:00:06]}  Kg6 {[%clk 0:00:06]} 50. R5e2 {[%clk 0:00:06]}  c1=Q {[%clk 0:00:06]} 51. Re6+ {[%clk 0:00:06]}  Nf6 {[%clk 0:00:05]} 52. Re4 {[%clk 0:00:06]}  Qcxe1+ {[%clk 0:00:06]} 53. Kg2 {[%clk 0:00:07]}  Qxe4 {[%clk 0:00:06]} 54. fxe4 {[%clk 0:00:08]}  Qf4 {[%clk 0:00:07]} 55. Kh1 {[%clk 0:00:09]}  Qxe4+ {[%clk 0:00:07]} 56. Kg1 {[%clk 0:00:09]} 0-1


[Site "https://www.chess.com"]

[Event "Titled Tuesday Blitz May 25 2021"]
[White "Kosteniuk, Alexandra"]
[Black "AldokhinIvan"]
[WhiteFideId "4128125"]
[WhiteElo "2521"]
[BlackElo "2499"]
[Result "1-0"]
[Round "02"]
[TimeControl "180+1"]
[Date "2021.05.25"]
[WhiteClock "0:00:23"]
[BlackClock "0:00:04"]

1. e4 {[%clk 0:03:00]}  c5 {[%clk 0:02:59]} 2. c3 {[%clk 0:03:00]}  d5 {[%clk 0:02:56]} 3. exd5 {[%clk 0:03:00]}  Qxd5 {[%clk 0:02:55]} 4. d4 {[%clk 0:03:01]}  Nf6 {[%clk 0:02:54]} 5. Nf3 {[%clk 0:03:01]}  e6 {[%clk 0:02:51]} 6. Be2 {[%clk 0:02:59]}  Be7 {[%clk 0:02:50]} 7. O-O {[%clk 0:02:59]}  O-O {[%clk 0:02:50]} 8. c4 {[%clk 0:02:59]}  Qd8 {[%clk 0:02:36]} 9. Nc3 {[%clk 0:02:56]}  cxd4 {[%clk 0:02:33]} 10. Nxd4 {[%clk 0:02:56]}  e5 {[%clk 0:02:31]} 11. Ndb5 {[%clk 0:02:46]}  Nc6 {[%clk 0:02:11]} 12. Nd5 {[%clk 0:02:41]}  a6 {[%clk 0:01:58]} 13. Nbc7 {[%clk 0:02:35]}  Rb8 {[%clk 0:01:33]} 14. Be3 {[%clk 0:02:29]}  Nxd5 {[%clk 0:01:23]} 15. Nxd5 {[%clk 0:02:28]}  Be6 {[%clk 0:00:59]} 16. Bb6 {[%clk 0:02:25]}  Qd6 {[%clk 0:00:55]} 17. Bc7 {[%clk 0:02:18]}  Qc5 {[%clk 0:00:54]} 18. Nxe7+ {[%clk 0:02:15]}  Qxe7 {[%clk 0:00:50]} 19. Bxb8 {[%clk 0:02:11]}  Rxb8 {[%clk 0:00:50]} 20. b3 {[%clk 0:02:03]}  Nd4 {[%clk 0:00:49]} 21. Bd3 {[%clk 0:02:03]}  Rd8 {[%clk 0:00:48]} 22. Re1 {[%clk 0:01:47]}  Qg5 {[%clk 0:00:47]} 23. Be4 {[%clk 0:01:33]}  Bg4 {[%clk 0:00:39]} 24. Qc1 {[%clk 0:01:16]}  Qe7 {[%clk 0:00:38]} 25. Qb2 {[%clk 0:01:07]}  Qg5 {[%clk 0:00:32]} 26. Kh1 {[%clk 0:00:58]}  h5 {[%clk 0:00:28]} 27. f3 {[%clk 0:00:53]}  Bc8 {[%clk 0:00:26]} 28. Bd5 {[%clk 0:00:52]}  h4 {[%clk 0:00:21]} 29. Qf2 {[%clk 0:00:50]}  h3 {[%clk 0:00:18]} 30. g3 {[%clk 0:00:39]}  b5 {[%clk 0:00:17]} 31. f4 {[%clk 0:00:37]}  Qg6 {[%clk 0:00:10]} 32. Rxe5 {[%clk 0:00:34]}  Nf5 {[%clk 0:00:04]} 33. Rae1 {[%clk 0:00:33]}  Be6 {[%clk 0:00:03]} 34. Bxe6 {[%clk 0:00:29]}  fxe6 {[%clk 0:00:03]} 35. Rxe6 {[%clk 0:00:28]}  Qh5 {[%clk 0:00:03]} 36. Qe2 {[%clk 0:00:20]}  Qf7 {[%clk 0:00:01]} 37. Re8+ {[%clk 0:00:20]}  Rxe8 {[%clk 0:00:02]} 38. Qxe8+ {[%clk 0:00:20]}  Qxe8 {[%clk 0:00:02]} 39. Rxe8+ {[%clk 0:00:20]}  Kf7 {[%clk 0:00:03]} 40. Ra8 {[%clk 0:00:20]}  bxc4 {[%clk 0:00:04]} 41. bxc4 {[%clk 0:00:21]}  Ne3 {[%clk 0:00:04]} 42. Ra7+ {[%clk 0:00:21]}  Kf6 {[%clk 0:00:04]} 43. Rxa6+ {[%clk 0:00:22]}  Kf5 {[%clk 0:00:05]} 44. Ra7 {[%clk 0:00:23]}  g6 {[%clk 0:00:04]} 45. c5 {[%clk 0:00:23]}  Ke4 {[%clk 0:00:04]} 46. c6 {[%clk 0:00:23]}  Kf3 {[%clk 0:00:03]} 47. Ra3 {[%clk 0:00:22]}  Kf2 {[%clk 0:00:03]} 48. Rxe3 {[%clk 0:00:23]}  Kxe3 {[%clk 0:00:04]} 49. c7 {[%clk 0:00:23]} 1-0


[Site "https://www.chess.com"]

[Event "Titled Tuesday Blitz May 25 2021"]
[White "Krishnan, Varun"]
[Black "Erigaisi Arjun"]
[WhiteFideId "5054508"]
[BlackFideId "35009192"]
[WhiteElo "2563"]
[BlackElo "2609"]
[Result "0-1"]
[Round "02"]
[TimeControl "180+1"]
[Date "2021.05.25"]
[WhiteClock "0:00:06"]
[BlackClock "0:01:26"]

1. e4 {[%clk 0:02:20]}  e6 {[%clk 0:02:58]} 2. d4 {[%clk 0:02:20]}  d5 {[%clk 0:02:59]} 3. Nc3 {[%clk 0:02:20]}  Nf6 {[%clk 0:02:59]} 4. e5 {[%clk 0:02:20]}  Ne4 {[%clk 0:03:00]} 5. Bd3 {[%clk 0:02:13]}  Nxc3 {[%clk 0:03:00]} 6. bxc3 {[%clk 0:02:13]}  c5 {[%clk 0:03:01]} 7. Nf3 {[%clk 0:02:07]}  Qa5 {[%clk 0:03:01]} 8. Bd2 {[%clk 0:01:56]}  c4 {[%clk 0:03:01]} 9. Be2 {[%clk 0:01:56]}  Ba3 {[%clk 0:03:02]} 10. Rb1 {[%clk 0:01:50]}  Nc6 {[%clk 0:02:53]} 11. O-O {[%clk 0:01:50]}  b6 {[%clk 0:02:49]} 12. Ng5 {[%clk 0:01:49]}  h6 {[%clk 0:02:47]} 13. Nh3 {[%clk 0:01:48]}  Bd7 {[%clk 0:02:46]} 14. f4 {[%clk 0:01:48]}  O-O-O {[%clk 0:02:46]} 15. Bh5 {[%clk 0:01:39]}  g6 {[%clk 0:02:39]} 16. Bf3 {[%clk 0:01:39]}  Rdg8 {[%clk 0:02:35]} 17. Nf2 {[%clk 0:01:39]}  Be7 {[%clk 0:02:32]} 18. Ng4 {[%clk 0:01:37]}  h5 {[%clk 0:02:25]} 19. Ne3 {[%clk 0:01:37]}  Nb8 {[%clk 0:02:24]} 20. Qe1 {[%clk 0:01:34]}  Bc6 {[%clk 0:02:23]} 21. Kh1 {[%clk 0:01:30]}  Kc7 {[%clk 0:02:23]} 22. g4 {[%clk 0:01:24]}  hxg4 {[%clk 0:02:22]} 23. Nxg4 {[%clk 0:01:24]}  Nd7 {[%clk 0:02:19]} 24. Qg3 {[%clk 0:01:13]}  Qxa2 {[%clk 0:02:11]} 25. Ra1 {[%clk 0:01:13]}  Qxc2 {[%clk 0:02:10]} 26. Rf2 {[%clk 0:01:00]}  a5 {[%clk 0:01:57]} 27. Be1 {[%clk 0:00:51]}  Qb3 {[%clk 0:01:46]} 28. Qg2 {[%clk 0:00:50]}  Qb5 {[%clk 0:01:43]} 29. Rb2 {[%clk 0:00:49]}  Qa6 {[%clk 0:01:43]} 30. Ne3 {[%clk 0:00:49]}  b5 {[%clk 0:01:41]} 31. Nc2 {[%clk 0:00:41]}  Qb6 {[%clk 0:01:38]} 32. Rba2 {[%clk 0:00:40]}  Ra8 {[%clk 0:01:37]} 33. Bd2 {[%clk 0:00:26]}  b4 {[%clk 0:01:37]} 34. cxb4 {[%clk 0:00:26]}  axb4 {[%clk 0:01:38]} 35. Ne3 {[%clk 0:00:25]}  Qxd4 {[%clk 0:01:35]} 36. Bc1 {[%clk 0:00:20]}  Qxa1 {[%clk 0:01:34]} 37. Rxa1 {[%clk 0:00:20]}  Rxa1 {[%clk 0:01:35]} 38. Qb2 {[%clk 0:00:19]}  Rha8 {[%clk 0:01:34]} 39. Nxc4 {[%clk 0:00:17]}  dxc4 {[%clk 0:01:33]} 40. Bxc6 {[%clk 0:00:17]}  Kxc6 {[%clk 0:01:34]} 41. Qg2+ {[%clk 0:00:16]}  Kc7 {[%clk 0:01:34]} 42. Qc2 {[%clk 0:00:14]}  Nb6 {[%clk 0:01:30]} 43. f5 {[%clk 0:00:12]}  gxf5 {[%clk 0:01:30]} 44. h4 {[%clk 0:00:12]}  Bxh4 {[%clk 0:01:30]} 45. Qd2 {[%clk 0:00:11]}  Be7 {[%clk 0:01:29]} 46. Qe3 {[%clk 0:00:09]}  Nd5 {[%clk 0:01:27]} 47. Qd2 {[%clk 0:00:07]}  R8a2 {[%clk 0:01:27]} 48. Qh6 {[%clk 0:00:06]}  f4 {[%clk 0:01:26]} 0-1


[Site "https://www.chess.com"]

[Event "Titled Tuesday Blitz May 25 2021"]
[White "Krivonosov, Oleg"]
[Black "Tatarinov, Dmitry"]
[WhiteFideId "11600349"]
[BlackFideId "24160067"]
[WhiteElo "2469"]
[BlackElo "2308"]
[Result "1-0"]
[Round "02"]
[TimeControl "180+1"]
[Date "2021.05.25"]
[WhiteClock "0:01:14"]
[BlackClock "0:01:00"]

1. Nf3 {[%clk 0:03:00]}  d5 {[%clk 0:02:57]} 2. d4 {[%clk 0:03:00]}  Nf6 {[%clk 0:02:57]} 3. c4 {[%clk 0:03:00]}  e6 {[%clk 0:02:58]} 4. g3 {[%clk 0:02:59]}  Bb4+ {[%clk 0:02:55]} 5. Bd2 {[%clk 0:02:58]}  Be7 {[%clk 0:02:56]} 6. Bg2 {[%clk 0:02:58]}  O-O {[%clk 0:02:56]} 7. O-O {[%clk 0:02:58]}  c6 {[%clk 0:02:56]} 8. Qc2 {[%clk 0:02:57]}  b6 {[%clk 0:02:55]} 9. Bf4 {[%clk 0:02:51]}  Ba6 {[%clk 0:02:52]} 10. Ne5 {[%clk 0:02:45]}  Nfd7 {[%clk 0:02:48]} 11. cxd5 {[%clk 0:02:41]}  cxd5 {[%clk 0:02:41]} 12. Nc3 {[%clk 0:02:39]}  Nxe5 {[%clk 0:02:40]} 13. Bxe5 {[%clk 0:02:35]}  Nc6 {[%clk 0:02:39]} 14. Nxd5 {[%clk 0:02:29]}  Nxe5 {[%clk 0:02:28]} 15. Nxe7+ {[%clk 0:02:28]}  Qxe7 {[%clk 0:02:28]} 16. Bxa8 {[%clk 0:02:19]}  Rxa8 {[%clk 0:02:24]} 17. dxe5 {[%clk 0:02:18]}  Rc8 {[%clk 0:02:24]} 18. Qe4 {[%clk 0:02:15]}  Bb7 {[%clk 0:02:19]} 19. Qe3 {[%clk 0:02:14]}  Rc4 {[%clk 0:02:16]} 20. Rac1 {[%clk 0:02:08]}  Rb4 {[%clk 0:02:06]} 21. b3 {[%clk 0:02:06]}  h5 {[%clk 0:02:06]} 22. Qc3 {[%clk 0:01:53]}  Bd5 {[%clk 0:01:52]} 23. f3 {[%clk 0:01:45]}  h4 {[%clk 0:01:30]} 24. e4 {[%clk 0:01:43]}  Bb7 {[%clk 0:01:29]} 25. a3 {[%clk 0:01:31]}  Rb5 {[%clk 0:01:27]} 26. b4 {[%clk 0:01:31]}  hxg3 {[%clk 0:01:17]} 27. hxg3 {[%clk 0:01:30]}  Qg5 {[%clk 0:01:18]} 28. Kf2 {[%clk 0:01:26]}  Rxe5 {[%clk 0:01:16]} 29. f4 {[%clk 0:01:22]}  Qh5 {[%clk 0:01:03]} 30. Qxe5 {[%clk 0:01:19]}  Qh2+ {[%clk 0:01:03]} 31. Ke3 {[%clk 0:01:19]}  Qxg3+ {[%clk 0:01:03]} 32. Rf3 {[%clk 0:01:17]}  Qg2 {[%clk 0:01:00]} 33. Qb8+ {[%clk 0:01:14]} 1-0


[Site "https://www.chess.com"]